Cogmind - Beta 13 @@@ ROGUE MODE // 2024.04.11 @ 21:38:05 Player: m1m1c Result: Destroyed by G-50 Soldier with Heavy Laser Performance ------------- Evolutions (2) 1000 Regions Visited (4) 800 Robots Destroyed (31) 155 Value Destroyed (630) 630 Prototype IDs (1) 20 Alien Tech Used (0) 0 Bonus (127) 127 TOTAL SCORE: 2732 Bonus ------- Follower Combat Kills 190 Friendly Fire -63 Cogmind --------- Core Integrity 0/550 Matter 300/300 Energy 100/100 System Corruption 0% Temperature Cool (18) Movement Core (50) Location -8/Materials Parts ------- > --- POWER (1) -------- (None) > --- PROPULSION (4) --- (None) > --- UTILITY (4) ------ (None) > --- WEAPON (2) ------- (None) > --- INVENTORY (5) ---- Ion Engine Titanium Leg Compact Wheel Improved EM Shotgun Pulse Rifle Peak State ------------ > --- POWER ------------ Improved Ion Engine > --- PROPULSION ------- Aluminum Leg Aluminum Leg Aluminum Leg > --- UTILITY ---------- Large Storage Unit Sensor Array Shield Generator > --- WEAPON ----------- Improved EM Shotgun Heavy Particle Cannon > --- INVENTORY -------- Ion Engine Aluminum Leg Aluminum Leg Compact Wheel Medium Matter Pod Signal Interpreter Core Shielding Improved EM Shotgun Medium Laser Pulse Rifle Datajack [Rating: 16] Favorites ----------- Power Improved Ion Engine Engine Improved Ion Engine Power Core Light Nuclear Core Propulsion Aluminum Leg Leg Aluminum Leg Utility Shield Generator Device Shield Generator Storage Large Storage Unit Processor Signal Interpreter Protection Core Shielding Weapon Medium Laser Energy Gun Medium Laser Energy Cannon Heavy Particle Cannon Ballistic Gun Light Assault Rifle Launcher Grenade Launcher Build | -11 -10 -9 -9 -8 ------- Run | Yrd Mat Mat Min Mat Slots Evolved 4 | . . 2 . 2 Power . | . . . . . Propulsion 2 | . . 1 . 1 Utility 2 | . . 1 . 1 Weapon . | . . . . . Parts Attached 31 | 6 3 13 5 4 Power 4 | 1 1 2 . . Engine 3 | 1 . 2 . . Core 1 | . 1 . . . Reactor . | . . . . . Propulsion 5 | 2 . 1 . 2 Treads . | . . . . . Leg 5 | 2 . 1 . 2 Wheel . | . . . . . Hover . | . . . . . Flight . | . . . . . Utility 13 | 1 1 7 2 2 Device 7 | . 1 4 1 1 Storage 2 | 1 . 1 . . Processor 1 | . . . 1 . Hackware . | . . . . . Protection 3 | . . 2 . 1 Artifact . | . . . . . Weapon 9 | 2 1 3 3 . Energy Gun 5 | 1 . 2 2 . Energy Cannon 2 | . . 1 1 . Ballistic Gun 1 | 1 . . . . Ballistic Cannon . | . . . . . Launcher 1 | . 1 . . . Special Weapon . | . . . . . Impact Weapon . | . . . . . Slashing Weapon . | . . . . . Piercing Weapon . | . . . . . Special Melee Weapon . | . . . . . Unidentified Prototypes 1 | . . 1 . . Parts Lost 8 | . . 3 1 4 Power 1 | . . 1 . . Propulsion 2 | . . . 1 1 Utility 4 | . . 1 . 3 Weapon 1 | . . 1 . . Highest Loss Streak 3 | . . 3 1 1 To Critical Strikes . | . . . . . Average Slot Usage (%) 86 | . 97 83 93 66 Engine 6 | . 3 4 11 6 Core 4 | . 10 5 . . Leg 29 | . 28 33 31 24 Device 12 | . 12 13 14 9 Storage 10 | . 14 11 11 6 Processor 3 | . . . 7 6 Energy Gun 9 | . 14 6 11 6 Energy Cannon 3 | . . 3 6 6 Ballistic Gun 1 | . 5 . . . Launcher 3 | . 8 5 . . Naked Turns 30 | . . . . 30 Heaviest Build 39 | 13 17 39 39 38 Greatest Support 40 | 20 20 30 30 40 Greatest Overweight (x) 1 | . . 1 1 1 Average Overweight (x) . | . . . . . Largest Inventory Capacity 15 | 8 8 15 15 15 Average Capacity 12 | 7 8 14 15 12 Most Carried 13 | 1 8 12 13 10 Average Carried 8 | . 4 9 11 7 Final Capacity 15 | 8 8 15 15 5 Final Carried 11 | 1 8 11 11 5 Class Distribution -------------------- 100% | Mutant Dominant Class ---------------- Mutant | -10/Materials Mutant | -9/Materials Mutant | -9/Mines Mutant | -8/Materials Resources | -11 -10 -9 -9 -8 ----------- Run | Yrd Mat Mat Min Mat Matter Collected 768 | 204 93 373 86 12 Remotely . | . . . . . Salvage Created 855 | . 132 610 104 9 Parts 50 | . 14 26 9 1 Haulers Intercepted 1 | . . 1 . . Recyclers Shooed 3 | . 1 2 . . Parts Field Recycled . | . . . . . Retrieved Matter . | . . . . . Parts Self-Destructed . | . . . . . Prevented . | . . . . . Kills | -11 -10 -9 -9 -8 ------- Run | Yrd Mat Mat Min Mat Combat Hostiles Destroyed 22 | . 7 9 5 1 Guns 8 | . 2 2 3 1 Cannons 2 | . . 1 1 . AOE 11 | . 5 6 . . Classes Destroyed 7 | . 3 4 . . Builder 1 | . . 1 . . Hauler 1 | . . 1 . . Recycler 4 | . . 4 . . Watcher 3 | . 1 2 . . Swarmer 11 | . 3 3 4 1 Grunt 10 | . 4 5 1 . Sentry 1 | . . 1 . . Best Kill Streak 12 | . 4 12 4 1 Combat Bots Only 8 | . 3 8 4 1 Max Kills in Single Turn 2 | . 2 2 2 1 Gunslinging . | . . . . . Exploded 2 | . 2 2 . . Melee . | . . . . . Uniques/NPCs Destroyed . | . . . . . Combat | -11 -10 -9 -9 -8 -------- Run | Yrd Mat Mat Min Mat Hostile Shots Fired 186 | . 33 27 24 102 Missed 63 | . 12 7 8 36 Damage Taken 1476 | . 169 229 155 923 Core 602 | . 16 6 29 551 Absorbed by Shields 353 | . 71 77 49 156 Redirected to Shielding 47 | . . 1 . 46 Core Remaining (%) 94 | 100 93 . 91 . Volleys Fired 58 | . 14 21 13 10 Largest 2 | . 2 2 2 2 Hottest 125 | . 80 120 125 125 Shots Fired 99 | . 27 30 25 17 Gun 53 | . 21 12 13 7 Cannon 26 | . . 4 12 10 Launcher 20 | . 6 14 . . Special . | . . . . . Kinetic 7 | . 7 . . . Thermal 55 | . 14 4 20 17 Explosive 20 | . 6 14 . . Electromagnetic 17 | . . 12 5 . Robot Hit Streak 10 | . 10 9 2 5 Robot Miss Streak 5 | . 4 2 5 3 Penetration Max . | . . . . . Secondary Targets . | . . . . . Shots Hit Robots 46 | . 12 14 13 7 Core Hits 54 | . 15 28 8 3 Critical Kills . | . . . . . Critical Parts Destroyed . | . . . . . Critical Strikes 2 | . 1 . . 1 Burn 2 | . 1 . . 1 Melee Attacks . | . . . . . Impact . | . . . . . Slashing . | . . . . . Piercing . | . . . . . Sneak Attacks . | . . . . . Combat Hostiles . | . . . . . Follow-up Attacks . | . . . . . Damage Inflicted 1935 | . 470 1005 281 179 Guns 454 | . 142 157 103 52 Cannons 325 | . . 75 175 75 Explosions 1081 | . 326 755 . . Melee . | . . . . . Ramming 75 | . 2 18 3 52 Kinetic 41 | . 41 . . . Thermal 577 | . 101 111 238 127 Explosive 1045 | . 326 719 . . Electromagnetic 197 | . . 157 40 . Impact . | . . . . . Slashing . | . . . . . Piercing . | . . . . . Highest Corruption 2 | . . 2 2 . Average Corruption 1 | . . 1 2 . Corruption Purged . | . . . . . Corruption Blocked . | . . . . . Effects 4 | . . 1 3 . Matter Fused 1 | . . . 1 . Energy Discharges 1 | . . 1 . . Data Loss (minor) 1 | . . . 1 . Alerts 1 | . . . 1 . Overload Shots . | . . . . . Overflow Damage 22 | . . 17 5 . Projectiles 20 | . . 15 5 . Explosions 2 | . . 2 . . Melee . | . . . . . Knockbacks . | . . . . . Impact . | . . . . . Kinetic . | . . . . . Secondary . | . . . . . Self-Inflicted Damage 95 | . 37 44 . 14 Shots 4 | . 2 2 . . Rammed 5 | . . . . 5 Targets Rammed 14 | . 2 3 1 8 Kicked 9 | . 2 3 1 3 Crushed . | . . . . . Highest Temperature 315 | . 177 192 315 147 Average Temperature 89 | . 63 71 130 68 Received Heat Transfer 542 | . 79 96 80 287 Effects 1 | . . . 1 . Energy Bleed 1 | . . . 1 . Siege Activations . | . . . . . Robots Corrupted . | . . . . . Combat Hostiles . | . . . . . Parts Fried . | . . . . . Impact Corruptions . | . . . . . Robots Melted 1 | . . . 1 . Combat Hostiles 1 | . . . 1 . Parts Melted . | . . . . . Heat Transferred 1358 | . 370 211 444 333 Parts Sabotaged . | . . . . . Parts Stolen . | . . . . . Parts Stripped . | . . . . . Power Chain Reactions 1 | . . 1 . . Alert | -11 -10 -9 -9 -8 ------- Run | Yrd Mat Mat Min Mat Peak Influence 400 | . 161 400 301 241 Initial 78 | . . 42 78 39 Average 150 | . 64 221 186 149 Maximum Alert Level 2 | . . 2 1 1 Low Security (%) 76 | 100 100 40 80 86 Level 1 18 | . . 40 19 13 Level 2 5 | . . 19 . . Level 3 . | . . . . . Level 4 . | . . . . . Level 5 . | . . . . . High Security . | . . . . . Max Security . | . . . . . Squads Dispatched 8 | . 2 1 . 5 Investigation 1 | . 1 . . . Extermination . | . . . . . Reinforcement 4 | . 1 1 . 2 Assault . | . . . . . Garrison 3 | . . . . 3 Intercept . | . . . . . Searches Triggered . | . . . . . Construction Impeded 1 | . . . . 1 Haulers Reinforced . | . . . . . Active Scanning Responses . | . . . . . Cargo Convoy Interrupts . | . . . . . Stealth | -11 -10 -9 -9 -8 --------- Run | Yrd Mat Mat Min Mat Distress Signals 6 | . 1 1 . 4 Communications Jammed . | . . . . . Distress Signals . | . . . . . Times Spotted 53 | . 7 13 7 26 Peak Tracking Total 11 | . 4 3 3 11 Tactical Retreats 3 | . . . . 3 Traps | -11 -10 -9 -9 -8 ------- Run | Yrd Mat Mat Min Mat Traps Triggered 2 | . . 2 . . Indirectly . | . . . . . Trap Hack Attempts . | . . . . . Triggered . | . . . . . Disarmed . | . . . . . Reprogrammed . | . . . . . Reused . | . . . . . Traps Extracted . | . . . . . Installed . | . . . . . Triggered . | . . . . . Machines | -11 -10 -9 -9 -8 ---------- Run | Yrd Mat Mat Min Mat Machines Disabled 3 | . 1 2 . . Max in Single Turn 2 | . 1 2 . . Machines Repaired . | . . . . . Machines Dismantled . | . . . . . Machines Sabotaged . | . . . . . Overloaded Fab Kills . | . . . . . Hacking | -11 -10 -9 -9 -8 --------- Run | Yrd Mat Mat Min Mat Machines Accessed 2 | . 1 . 1 . Terminals 2 | . 1 . 1 . Fabricators . | . . . . . Repair Stations . | . . . . . Recycling Units . | . . . . . Scanalyzers . | . . . . . Garrison Access . | . . . . . Total Hacks 7 | . 4 . 3 . Successful 4 | . 2 . 2 . Failed 3 | . 2 . 1 . Catastrophic . | . . . . . Database Lockouts . | . . . . . Manual . | . . . . . Terminals 7 | . 4 . 3 . Fabricators . | . . . . . Repair Stations . | . . . . . Recycling Units . | . . . . . Scanalyzers . | . . . . . Garrison Access . | . . . . . Terminal Hacks 4 | . 2 . 2 . Alert Level 2 | . 1 . 1 . Unreport Threat 1 | . 1 . . . Zone Layout 1 | . . . 1 . Fabricator Hacks . | . . . . . Repair Station Hacks . | . . . . . Recycling Unit Hacks . | . . . . . Scanalyzer . | . . . . . Garrison Access Hacks . | . . . . . Unauthorized Hacks . | . . . . . Terminals . | . . . . . Fabricators . | . . . . . Repair Stations . | . . . . . Recycling Units . | . . . . . Scanalyzers . | . . . . . Garrison Access . | . . . . . Data Cores Recovered . | . . . . . Used . | . . . . . Hacking Detections 2 | . 1 . 1 . Full Trace Events 1 | . 1 . . . Feedback Events . | . . . . . Feedback Blocked . | . . . . . Robot Schematics Acquired . | . . . . . Robots Built . | . . . . . Authchips . | . . . . . Time . | . . . . . Total Robot Build Rating . | . . . . . Part Schematics Acquired . | . . . . . Parts Built . | . . . . . Authchips . | . . . . . Time . | . . . . . Total Part Build Rating . | . . . . . Parts Repaired . | . . . . . Time . | . . . . . Parts Recycled . | . . . . . Recycled Matter . | . . . . . Retrieved Matter . | . . . . . Retrieved Components . | . . . . . Parts Scanalyzed . | . . . . . Part Schematics Acquired . | . . . . . Parts Damaged . | . . . . . Bothacking | -11 -10 -9 -9 -8 ------------ Run | Yrd Mat Mat Min Mat Used RIF Installer . | . . . . . Robots Hacked . | . . . . . Non-combat . | . . . . . Combat . | . . . . . Robot Hacks Applied . | . . . . . Relay Couplers Released . | . . . . . Fabnet Peak Effective % . | . . . . . Robots Rewired . | . . . . . Allies Hacked . | . . . . . Hacks Repelled . | . . . . . Allies | -11 -10 -9 -9 -8 -------- Run | Yrd Mat Mat Min Mat Total Allies 3 | . . . 3 . Largest Group 3 | . . . 3 3 Highest-Rated Group 40 | . . . 40 40 Highest-Rated Ally 16 | . . . 16 16 Total Orders . | . . . . . Ally Attacks 47 | . . . 21 26 Total Damage 583 | . . . 249 334 Kills 10 | . . . 4 6 Allies Corrupted . | . . . . . Allies Melted . | . . . . . Intel | -11 -10 -9 -9 -8 ------- Run | Yrd Mat Mat Min Mat Robot Analysis Total . | . . . . . Derelict Logs Recovered 1 | . . . 1 . Drone Launches . | . . . . . Drone Recoveries . | . . . . . Exploration | -11 -10 -9 -9 -8 ------------- Run | Yrd Mat Mat Min Mat Turns Passed 1554 | 89 367 425 404 269 Spaces Moved 1080 | 76 259 243 238 264 Core 161 | 16 . . . 145 Treads . | . . . . . Legs 919 | 60 259 243 238 119 Wheels . | . . . . . Hover . | . . . . . Flight . | . . . . . Fastest Speed 50 | 50 120 120 120 50 Average Speed 121 | 105 120 138 150 86 Slowest Speed 190 | 120 120 190 190 190 Overloaded Moves . | . . . . . Propulsion Burnouts . | . . . . . Robots Hopped . | . . . . . Cave-ins Triggered . | . . . . . Exploration Rate (%) 30 | 5 30 23 74 22 Regions Visited 4 Branch Regions 1 Pre-discovered Areas . | . . . . . Known Exits Taken 1 | . . . 1 . Unknown Exits Taken 3 | 1 1 1 . . Scrap Searched 2 | . . . 2 . Spaces Dug . | . . . . . Terrain Destroyed 106 | . 27 71 4 4 Melee . | . . . . . Projectile 9 | . . 1 4 4 AOE 97 | . 27 70 . . Terrain Rammed . | . . . . . Walls Destroyed . | . . . . . Machines Disabled . | . . . . . Actions | -11 -10 -9 -9 -8 --------- Run | Yrd Mat Mat Min Mat Total 1221 | 82 290 301 261 287 Wait 12 | . . 12 . . Move 1076 | 75 258 242 237 264 Hop . | . . . . . Pick Up 16 | 1 10 4 . 1 Fast Attach 11 | 6 1 4 . . Attach 16 | . 1 6 5 4 Detach 10 | . . 5 5 . Swap 4 | . 1 3 . . Drop 4 | . 3 1 . . Fire 58 | . 14 21 13 10 Melee . | . . . . . Ram 5 | . . . . 5 Kick 9 | . 2 3 1 3 Crush . | . . . . . Escape Stasis . | . . . . . Rewire . | . . . . . Trap . | . . . . . Miscellaneous . | . . . . . Route ------- -11/Scrapyard -10/Materials -9/Materials -9/Mines -8/Materials History --------- Turn | Location | Event 2 | -11/Scrapyard | Discovered new exit (range 16) 90 | -11/Scrapyard | Entered Materials 310 | -10/Materials | Discovered new exit (range 8) 312 | -10/Materials | Build established: Mutant 457 | -10/Materials | Entered another Materials area 457 | -9/Materials | Evolved 2 slots: Propulsion x1, Utility x1 684 | -9/Materials | Destroyed 8 combat bots 693 | -9/Materials | Lost 3 parts (1p1u1w) 819 | -9/Materials | Discovered new exit (range 15) 882 | -9/Materials | Entered Mines 943 | -9/Mines | Learned 4 Materials zone layouts 1101 | -9/Mines | Assisted by bots powering up and referring to "LRC-V3" 1253 | -9/Mines | Discovered new exit (range 5) 1265 | -9/Mines | Identified exit to Materials 1286 | -9/Mines | Entered Materials 1286 | -8/Materials | Accompanied by 3 allies 1286 | -8/Materials | Evolved 2 slots: Propulsion x1, Utility x1 1322 | -8/Materials | Garrison activated, responded to threat 1476 | -8/Materials | Released all parts (8) 1514 | -8/Materials | Core integrity fell below 50% 1554 | -8/Materials | Core integrity fell below 20% 1555 | -8/Materials | Destroyed by G-50 Soldier with Heavy Laser Last Messages --------------- Penetrated by Slug. U-05 Engineer destroyed. R-06 Scavenger collects Terrain Scan Processor. K-01 Serf collects debris. R-06 Scavenger collects Wheel. R-06 Scavenger collects Structural Scanner. Penetrated by Slug. Acquired Titanium Leg. W-25 Informer sends out distress signal. Slammed into W-25 Informer. Core Shielding destroyed. Knocked back. H-61 Shepherd calls for reinforcements. ALERT: Suspicious intruders detected, dispatching Specialist reinforcements to area. Slammed into Y-45 Defender. W-25 Informer sends out distress signal. Penetrated by Slug. Knocked back. Slammed into H-61 Shepherd. Map ----- +----------------------------------------------------+ | ??#=! # # #????????# "" """ ## ##???# | | ??#[] + " " # #????????# """ # ##### | | ??# # "Y" # !! #????????# """ + | | ??# # """ # ! #????????# """ # | | ?## ######## #????????# # ###### | | ?# ##########+####################### ##????? | | ?# ####### | | ?# # | | ##% # | | ##########+######+################ + | | ####+#####????# # #???????????# # | | # ???????????? #??????????????????# #?????? | | # ""????????????? #??????????????????# +?????? | | # ""?????????????? #??????????????????# # ????? | | # ""???????????????#?????????????????## ###???# | | # ?????????????????????????????????# #### # | | # "??????????#############????? ??? # # | | # ??????????# #????? ??? # + | | # "??????????# """ """" #????? """ # ### ## | | # ??????????# """ """" #????? """ ##+#####+#? | | ######??????????# """ """" #??????""" # #? | | ????????????????# #??????""" # """ " #? | | ????????????????# #?????? # """ T #? | | ????????????????# [ ! #?????? # """ " #? | | ????????????????######+#############+### #? | | ????????????????????# % @ ## #? | | ????????????????????#% Y HYh Y g + !!! #? | | ????????????????????# Y ## !!! #? | | ????????????????????###########;### ## !! #? | | ???????????????????????# ## ######### #? | | ???????????????????????# ## #????????##? | | ???????????????????????# * ## #??????????? | | ???????????????????????# # ??????????? | | ???????????????????????# # ?????????? | | ???????????????????????# """ """ # ????????? | | ######?????????????????# """ """ # ???????? | | ???????????????????????# """ """ # ########??? | | ???????????????????????#?###########+#####???????? | | ???????????????????????????????# #???????? | | ???????????????????????????????# T #???????? | | ???????????????????????????????# #???????? | | ???????????????????????????????# """ """ ##??????? | | ???????????????????????????????# """ """ #??????? | | ???????????????????????????????# """ """ ##??????? | | ???????????????????????????????# """ """ #???????? | | ???????????????????????????????# #???????? | | ???????????????????????????????###########???????? | | ??????????????????????????????? #????????????? | | ??????????????????????????????? """ #????????????? | | ??????????????????????????????? """ #????????????? | +----------------------------------------------------+ Best States ------------- Heat Dissipation 31 Energy Generation 14 Energy Capacity 265 Matter Stores 300 Matter Capacity 300 Sight Range 16 Robot Scan Range 14 Terrain Scan Density 10 Core Shielding 20 Evasion (%) 55 Item Schematics ----------------- None Robot Schematics ------------------ None Fabricated ------------ Nothing Alien Tech Used ----------------- None Achievements -------------- None Challenges ------------ None Game ------ Seed PhysicsArmageddonScrap Manual? 0 Play Time 00:16:58 Cumulative 10.2 hours Start 2024.04.11 @ 21:23:38 End 2024.04.11 @ 21:38:05 Sessions 1 Manual Loads 0 Difficulty Rogue Special Mode None Game No. 41 Rogue 41 Adventurer 0 Explorer 0 Win Type - Total 0 Types 0/0/0/0/0/0/0/0/0 Lore% 11 Gallery% 16 Achievement% 13 Wizard Run 0 Options --------- Layout 1 ASCII 1 Keyboard 0 Movement Arrows Keybinds 0 Fullscreen 1 Font 18/SmallcapsGlow Map View 50x40 Zoom Use 0% Tactical HUD 0 Map Filters NONE Filters NONE Steam 1 RUN: 27f8b978-da6b-4ee6-811c-eb7fee393b16